[Event "AUT Bundesliga 2022-23"]
[Site "Jenbach"]
[Date "2022.11.06"]
[Round "4.4"]
[White "Nagy, Gabor"]
[Black "Diermair, Andreas"]
[Result "1/2-1/2"]
[ECO "A11"]
[WhiteElo "2488"]
[BlackElo "2455"]
[Annotator "ChessBase"]
[PlyCount "70"]
[EventDate "2022.11.03"]
[EventType "team-tourn"]
[EventCountry "AUT"]
[SourceTitle "playchess.com"]
[Source "ChessBase"]
[SourceQuality "1"]
[TimeControl "40/5400+30:1800+30"]

1. c4 {[%emt 0:00:09]} c6 {[%emt 0:00:16]} 2. Nf3 {[%emt 0:01:30]} d5 {[%emt 0:00:09]} 3. e3 {[%emt 0:01:23]} Nf6 {[%emt 0:00:09]} 4. b3 {[%emt 0:01:24]} g6 {[%emt 0:09:42]} 5. Bb2 {[%emt 0:00:51]} Bg7 {[%emt 0:00:05]} 6. d4 {[%emt 0:01:26]} O-O {[%emt 0:09:08]} 7. Nbd2 {[%emt 0:00:54]} b6 {[%emt 0:02:03]} 8. Rc1 {[%emt 0:07:12]} Bb7 {[%emt 0:09:19]} 9. Bd3 {[%emt 0:06:01]} Nbd7 {[%emt 0:05:28]} 10. O-O {[%emt 0:04:10]} c5 {[%emt 0:00:29]} 11. Qe2 {[%emt 0:06:29]} e6 {[%emt 0:03:13]} 12. Rfd1 {[%emt 0:03:46]} Qe7 {[%emt 0:05:30]} 13. cxd5 {[%emt 0:10:03]} Nxd5 {[%emt 0:03:16]} 14. Nc4 {[%emt 0:01:52]} Rfd8 {[%emt 0:03:56]} 15. Bb1 {[%emt 0:03:17]} cxd4 {[%emt 0:03:53]} 16. Nxd4 {[%emt 0:03:19]} Nc5 {[%emt 0:02:21]} 17. g3 {[%emt 0:06:41]} e5 {[%emt 0:04:57]} 18. Nb5 {[%emt 0:03:24]} Ba6 {[%emt 0:01:01]} 19. Nba3 {[%emt 0:03:07]} Rac8 {[%emt 0:01:26]} 20. e4 {[%emt 0:01:28]} Nb4 {[%emt 0:00:55]} 21. Rxd8+ {[%emt 0:00:49]} Rxd8 {[%emt 0:00:17]} 22. Rd1 {[%emt 0:00:22]} Nc6 {[%emt 0:02:20]} 23. Rxd8+ {[%emt 0:02:52]} Qxd8 {[%emt 0:00:10]} 24. Kg2 {[%emt 0:01:45]} Nd4 {[%emt 0:02:30]} 25. Qe3 {[%emt 0:01:43]} Bb7 {[%emt 0:01:44]} 26. b4 {[%emt 0:00:32]} Nce6 {[%emt 0:01:56]} 27. Kf1 {[%emt 0:01:54]} Qc7 {[%emt 0:02:52]} 28. Bd3 {[%emt 0:00:48]} a6 {[%emt 0:03:21]} 29. Nb1 {[%emt 0:01:16]} b5 {[%emt 0:04:48]} 30. Na5 {[%emt 0:00:52]} Ba8 {[%emt 0:00:23]} 31. Nc3 {[%emt 0:01:37]} Qd6 {[%emt 0:00:46]} 32. a3 {[%emt 0:00:15]} h5 {[%emt 0:03:30]} 33. h4 {[%emt 0:01:09]} Kh7 {[%emt 0:00:37]} 34. Bb1 {[%emt 0:00:19]} Bh6 {[%emt 0:04:34]} 35. Qd3 {[%emt 0:00:18]} Bg7 {[%emt 0:03:38]} 1/2-1/2

[Event "AUT Bundesliga 2022-23"]
[Site "Jenbach"]
[Date "2022.11.06"]
[Round "4.5"]
[White "Schreiner, Peter"]
[Black "Mesaros, Florian"]
[Result "1/2-1/2"]
[ECO "A33"]
[WhiteElo "2404"]
[BlackElo "2404"]
[Annotator "ChessBase"]
[PlyCount "39"]
[EventDate "2022.11.03"]
[EventType "team-tourn"]
[EventCountry "AUT"]
[SourceTitle "playchess.com"]
[Source "ChessBase"]
[SourceQuality "1"]
[TimeControl "40/5400+30:1800+30"]

1. c4 {[%emt 0:00:15]} c5 {[%emt 0:00:37]} 2. Nf3 {[%emt 0:00:28]} Nc6 {[%emt 0:00:06]} 3. d4 {[%emt 0:00:52]} cxd4 {[%emt 0:00:43]} 4. Nxd4 {[%emt 0:00:06]} Nf6 {[%emt 0:01:23]} 5. Nc3 {[%emt 0:00:10]} e6 {[%emt 0:06:34]} 6. Bf4 {[%emt 0:01:44]} d5 {[%emt 0:05:58]} 7. cxd5 {[%emt 0:03:16]} Nxd5 {[%emt 0:01:24]} 8. Nxc6 {[%emt 0:00:27]} bxc6 {[%emt 0:00:40]} 9. Bd2 {[%emt 0:00:05]} Bc5 {[%emt 0:06:57]} 10. Na4 {[%emt 0:15:54]} Bd4 {[%emt 0:05:24]} 11. e3 {[%emt 0:01:33]} Be5 {[%emt 0:00:40]} 12. Qc2 {[%emt 0:04:37]} O-O {[%emt 0:05:31]} 13. Bd3 {[%emt 0:04:50]} Qh4 {[%emt 0:06:22]} 14. g3 {[%emt 0:02:08]} Qh5 {[%emt 0:04:40]} 15. f4 {[%emt 0:07:32]} Bf6 {[%emt 0:09:18]} 16. Be2 {[%emt 0:16:56]} Qh3 {[%emt 0:02:29]} 17. Bf1 {[%emt 0:03:26]} Qh5 {[%emt 0:01:44]} 18. Be2 {[%emt 0:00:44]} Qh3 {[%emt 0:00:43]} 19. Bf1 {[%emt 0:01:19]} Qh5 {[%emt 0:01:22]} 20. Be2 {[%emt 0:02:09]} 1/2-1/2

[Event "AUT Bundesliga 2022-23"]
[Site "Jenbach"]
[Date "2022.11.06"]
[Round "4.6"]
[White "Freitag, Manfred"]
[Black "Hoefelsauer, Thomas"]
[Result "0-1"]
[ECO "B12"]
[WhiteElo "2357"]
[BlackElo "2349"]
[Annotator "ChessBase"]
[PlyCount "136"]
[EventDate "2022.11.03"]
[EventType "team-tourn"]
[EventCountry "AUT"]
[SourceTitle "playchess.com"]
[Source "ChessBase"]
[SourceQuality "1"]
[TimeControl "40/5400+30:1800+30"]

1. e4 {[%emt 0:00:07]} c6 {[%emt 0:00:03]} 2. d4 {[%emt 0:00:16]} d5 {[%emt 0:00:04]} 3. e5 {[%emt 0:00:42]} Bf5 {[%emt 0:00:06]} 4. h4 {[%emt 0:00:35]} h5 {[%emt 0:00:16]} 5. Bd3 {[%emt 0:00:22]} Bxd3 {[%emt 0:00:06]} 6. Qxd3 {[%emt 0:00:06]} Qa5+ {[%emt 0:00:19]} 7. Nd2 {[%emt 0:00:30]} e6 {[%emt 0:00:20]} 8. Ngf3 {[%emt 0:00:11]} Nh6 {[%emt 0:00:30]} 9. O-O {[%emt 0:00:20]} Nf5 {[%emt 0:00:17]} 10. Nb3 {[%emt 0:00:09]} Qb5 {[%emt 0:00:33]} 11. Qd1 {[%emt 0:00:12]} c5 {[%emt 0:00:44]} 12. a4 {[%emt 0:00:12]} Qb6 {[%emt 0:00:19]} 13. dxc5 {[%emt 0:00:35]} Bxc5 {[%emt 0:00:08]} 14. c3 {[%emt 0:03:43]} Be7 {[%emt 0:13:01]} 15. a5 {[%emt 0:01:25]} Qa6 {[%emt 0:03:57]} 16. Nbd4 {[%emt 0:04:38]} Nxd4 {[%emt 0:07:51]} 17. Nxd4 {[%emt 0:02:42]} Nc6 {[%emt 0:02:41]} 18. Qa4 {[%emt 0:06:08]} O-O {[%emt 0:05:05]} 19. Nf3 {[%emt 0:01:58]} b5 {[%emt 0:10:18]} 20. Qc2 {[%emt 0:07:26]} b4 {[%emt 0:01:02]} 21. Bg5 {[%emt 0:00:35]} Rfc8 {[%emt 0:08:48]} 22. Rfc1 {[%emt 0:06:57]} Rab8 {[%emt 0:27:46]} 23. Qd2 {[%emt 0:05:30]} bxc3 {[%emt 0:01:11]} 24. bxc3 {[%emt 0:00:55]} Bf8 {[%emt 0:02:30]} 25. Ra4 {[%emt 0:06:49]} Ne7 {[%emt 0:00:48]} 26. Qd4 {[%emt 0:06:48]} Nf5 {[%emt 0:00:34]} 27. Qf4 {[%emt 0:02:13]} Rb2 {[%emt 0:01:31]} 28. Nd4 {[%emt 0:04:13]} Nxd4 {[%emt 0:03:47]} 29. cxd4 {[%emt 0:00:58]} Rxc1+ {[%emt 0:00:01]} 30. Qxc1 {[%emt 0:00:10]} Qe2 {[%emt 0:01:03]} 31. Be3 {[%emt 0:01:15]} Bb4 {[%emt 0:04:03]} 32. Ra1 {[%emt 0:02:39]} Rc2 {[%emt 0:02:37]} 33. Qb1 {[%emt 0:00:57]} Rb2 {[%emt 0:00:25]} 34. Qc1 {[%emt 0:00:09]} Qc2 {[%emt 0:02:27]} 35. a6 {[%emt 0:05:56]} Qxc1+ {[%emt 0:01:06]} 36. Rxc1 {[%emt 0:00:04]} Ba5 {[%emt 0:00:07]} 37. g4 {[%emt 0:01:11]} hxg4 {[%emt 0:01:15]} 38. Rc8+ {[%emt 0:00:29]} Kh7 {[%emt 0:00:01]} 39. h5 {[%emt 0:00:09]} Bb6 {[%emt 0:01:47]} 40. Kg2 {[%emt 0:00:00]} Rb4 {[%emt 0:00:00]} 41. Rf8 {[%emt 0:03:54]} Bxd4 {[%emt 0:01:36]} 42. Bxd4 {[%emt 0:02:09]} Rxd4 {[%emt 0:00:01]} 43. Rxf7 {[%emt 0:00:16]} Ra4 {[%emt 0:03:54]} 44. Rxa7 {[%emt 0:00:14]} Kh6 {[%emt 0:00:26]} 45. Ra8 {[%emt 0:01:49]} Kxh5 {[%emt 0:00:50]} 46. a7 {[%emt 0:04:02]} Kg5 {[%emt 0:00:17]} 47. Kf1 {[%emt 0:03:21]} Ra2 {[%emt 0:00:16]} 48. Ke1 {[%emt 0:00:30]} d4 {[%emt 0:06:40]} 49. Kd1 {[%emt 0:02:01]} d3 {[%emt 0:06:34]} 50. Ke1 {[%emt 0:00:57]} g3 {[%emt 0:02:43]} 51. fxg3 {[%emt 0:00:21]} Kg4 {[%emt 0:00:22]} 52. Kd1 {[%emt 0:04:57]} Kxg3 {[%emt 0:00:33]} 53. Re8 {[%emt 0:18:45]} Rxa7 {[%emt 0:00:09]} 54. Rxe6 {[%emt 0:00:16]} Kf4 {[%emt 0:07:13]} 55. Kd2 {[%emt 0:01:27]} Kf5 {[%emt 0:01:41]} 56. Rb6 {[%emt 0:05:16]} Re7 {[%emt 0:01:10]} 57. Kxd3 {[%emt 0:00:38]} Rxe5 {[%emt 0:00:07]} 58. Rb1 {[%emt 0:00:25]} g5 {[%emt 0:00:38]} 59. Rf1+ {[%emt 0:06:53]} Kg4 {[%emt 0:00:05]} 60. Kd4 {[%emt 0:00:20]} Re2 {[%emt 0:01:10]} 61. Kd3 {[%emt 0:00:30]} Ra2 {[%emt 0:03:01]} 62. Ke3 {[%emt 0:03:59]} Kg3 {[%emt 0:00:54]} 63. Rg1+ {[%emt 0:04:34]} Rg2 {[%emt 0:00:11]} 64. Rh1 {[%emt 0:03:27]} g4 {[%emt 0:00:02]} 65. Ra1 {[%emt 0:01:10]} Rb2 {[%emt 0:01:54]} 66. Rg1+ {[%emt 0:00:30]} Kh3 {[%emt 0:00:09]} 67. Kf4 {[%emt 0:00:33]} Rf2+ {[%emt 0:00:19]} 68. Kg5 {[%emt 0:00:31]} g3 {[%emt 0:00:23]} 0-1

[Event "AUT Bundesliga 2022-23"]
[Site "Jenbach"]
[Date "2022.11.06"]
[Round "4.7"]
[White "Bluebaum, Matthias"]
[Black "Vachier-Lagrave, Maxime"]
[Result "1/2-1/2"]
[ECO "D94"]
[WhiteElo "2647"]
[BlackElo "2747"]
[Annotator "ChessBase"]
[PlyCount "62"]
[EventDate "2022.11.03"]
[EventType "team-tourn"]
[EventCountry "AUT"]
[SourceTitle "playchess.com"]
[Source "ChessBase"]
[SourceQuality "1"]
[TimeControl "40/5400+30:1800+30"]

1. d4 {[%emt 0:00:03]} Nf6 {[%emt 0:00:03]} 2. c4 {[%emt 0:00:10]} g6 {[%emt 0:00:03]} 3. Nc3 {[%emt 0:00:09]} d5 {[%emt 0:00:03]} 4. Nf3 {[%emt 0:00:25]} Bg7 {[%emt 0:00:04]} 5. e3 {[%emt 0:00:10]} O-O {[%emt 0:00:11]} 6. cxd5 {[%emt 0:00:03]} Nxd5 {[%emt 0:00:06]} 7. Bc4 {[%emt 0:00:06]} Nb6 {[%emt 0:00:35]} 8. Bb3 {[%emt 0:00:07]} c5 {[%emt 0:00:27]} 9. O-O {[%emt 0:00:10]} Bg4 {[%emt 0:01:19]} 10. dxc5 {[%emt 0:02:38]} N6d7 {[%emt 0:00:16]} 11. Na4 {[%emt 0:00:30]} Qc7 {[%emt 0:13:20]} 12. h3 {[%emt 0:06:06]} Bxf3 {[%emt 0:00:41]} 13. Qxf3 {[%emt 0:00:05]} Na6 {[%emt 0:00:06]} 14. Bd2 {[%emt 0:14:45]} Ndxc5 {[%emt 0:02:28]} 15. Rac1 {[%emt 0:03:22]} Rac8 {[%emt 0:13:29]} 16. Nxc5 {[%emt 0:15:19]} Nxc5 {[%emt 0:00:28]} 17. Bb4 {[%emt 0:00:34]} b6 {[%emt 0:05:26]} 18. Bxc5 {[%emt 0:02:45]} bxc5 {[%emt 0:00:06]} 19. Rc2 {[%emt 0:00:30]} e6 {[%emt 0:00:20]} 20. Bc4 {[%emt 0:01:44]} Rfd8 {[%emt 0:01:06]} 21. Rd1 {[%emt 0:01:16]} Rxd1+ {[%emt 0:00:05]} 22. Qxd1 {[%emt 0:00:03]} Rd8 {[%emt 0:00:08]} 23. Rd2 {[%emt 0:00:08]} Bf6 {[%emt 0:00:15]} 24. Rxd8+ {[%emt 0:00:07]} Qxd8 {[%emt 0:00:04]} 25. Qxd8+ {[%emt 0:00:08]} Bxd8 {[%emt 0:00:02]} 26. Kf1 {[%emt 0:00:05]} Kf8 {[%emt 0:00:06]} 27. Ke2 {[%emt 0:00:03]} Ke7 {[%emt 0:00:04]} 28. Kd3 {[%emt 0:00:04]} Kd6 {[%emt 0:00:07]} 29. b3 {[%emt 0:00:04]} g5 {[%emt 0:00:11]} 30. g4 {[%emt 0:00:09]} h6 {[%emt 0:00:11]} 31. Ke4 {[%emt 0:00:04]} Ba5 {[%emt 0:00:08]} 1/2-1/2

[Event "AUT Bundesliga 2022-23"]
[Site "Jenbach"]
[Date "2022.11.06"]
[Round "4.8"]
[White "Esipenko, Andrey"]
[Black "Svane, Rasmus"]
[Result "1/2-1/2"]
[ECO "A29"]
[WhiteElo "2668"]
[BlackElo "2615"]
[Annotator "ChessBase"]
[PlyCount "79"]
[EventDate "2022.11.03"]
[EventType "team-tourn"]
[EventCountry "AUT"]
[SourceTitle "playchess.com"]
[Source "ChessBase"]
[SourceQuality "1"]
[TimeControl "40/5400+30:1800+30"]

1. c4 {[%emt 0:00:06]} Nf6 {[%emt 0:00:55]} 2. Nc3 {[%emt 0:00:38]} e5 {[%emt 0:00:23]} 3. Nf3 {[%emt 0:00:17]} Nc6 {[%emt 0:00:06]} 4. g3 {[%emt 0:00:12]} d5 {[%emt 0:01:04]} 5. cxd5 {[%emt 0:00:07]} Nxd5 {[%emt 0:00:04]} 6. Bg2 {[%emt 0:00:08]} Bc5 {[%emt 0:00:22]} 7. O-O {[%emt 0:00:40]} O-O {[%emt 0:00:19]} 8. Nxd5 {[%emt 0:00:18]} Qxd5 {[%emt 0:00:06]} 9. d3 {[%emt 0:00:13]} Qd6 {[%emt 0:15:36]} 10. Nd2 {[%emt 0:28:09]} Qg6 {[%emt 0:23:41]} 11. a3 {[%emt 0:20:39]} Bg4 {[%emt 0:06:32]} 12. b4 {[%emt 0:06:14]} Bb6 {[%emt 0:04:08]} 13. Nc4 {[%emt 0:12:32]} Qh5 {[%emt 0:04:47]} 14. Ra2 {[%emt 0:00:39]} Nd4 {[%emt 0:14:51]} 15. Re1 {[%emt 0:00:48]} c6 {[%emt 0:00:13]} 16. a4 {[%emt 0:04:15]} Rad8 {[%emt 0:04:49]} 17. Be3 {[%emt 0:02:05]} Rfe8 {[%emt 0:04:21]} 18. b5 {[%emt 0:04:21]} cxb5 {[%emt 0:02:37]} 19. Nxb6 {[%emt 0:01:10]} axb6 {[%emt 0:00:08]} 20. axb5 {[%emt 0:00:11]} Nxb5 {[%emt 0:02:24]} 21. Rb2 {[%emt 0:02:00]} Nd4 {[%emt 0:04:49]} 22. Bxb7 {[%emt 0:00:34]} e4 {[%emt 0:01:34]} 23. Bxd4 {[%emt 0:03:15]} Rxd4 {[%emt 0:00:04]} 24. Qc1 {[%emt 0:01:18]} exd3 {[%emt 0:01:16]} 25. exd3 {[%emt 0:00:26]} Red8 {[%emt 0:02:17]} 26. Be4 {[%emt 0:05:31]} f5 {[%emt 0:01:14]} 27. Bg2 {[%emt 0:01:25]} h6 {[%emt 0:01:33]} 28. Bf1 {[%emt 0:02:54]} Bf3 {[%emt 0:02:19]} 29. Qc7 {[%emt 0:00:52]} R4d7 {[%emt 0:00:41]} 30. Qf4 {[%emt 0:01:46]} Rd4 {[%emt 0:00:44]} 31. Qc7 {[%emt 0:00:12]} R4d7 {[%emt 0:00:05]} 32. Qxb6 {[%emt 0:01:28]} Kh7 {[%emt 0:00:50]} 33. Qe3 {[%emt 0:00:38]} Ba8 {[%emt 0:00:49]} 34. Rb4 {[%emt 0:00:36]} Rd6 {[%emt 0:01:06]} 35. Rf4 {[%emt 0:00:17]} Qf7 {[%emt 0:00:25]} 36. Qe5 {[%emt 0:00:48]} Rf6 {[%emt 0:00:28]} 37. Rb4 {[%emt 0:00:43]} Qd7 {[%emt 0:00:27]} 38. Bg2 {[%emt 0:00:31]} Bxg2 {[%emt 0:00:23]} 39. Kxg2 {[%emt 0:00:14]} Qxd3 {[%emt 0:00:17]} 40. Qe3 {[%emt 0:00:00]} 1/2-1/2

[Event "AUT Bundesliga 2022-23"]
[Site "Jenbach"]
[Date "2022.11.06"]
[Round "4.9"]
[White "Donchenko, Alexander"]
[Black "Maghsoodloo, Parham"]
[Result "1/2-1/2"]
[ECO "E10"]
[WhiteElo "2646"]
[BlackElo "2721"]
[Annotator "ChessBase"]
[PlyCount "60"]
[EventDate "2022.11.03"]
[EventType "team-tourn"]
[EventCountry "AUT"]
[SourceTitle "playchess.com"]
[Source "ChessBase"]
[SourceQuality "1"]
[TimeControl "40/5400+30:1800+30"]

1. d4 {[%emt 0:00:03]} Nf6 {[%emt 0:00:24]} 2. c4 {[%emt 0:00:09]} e6 {[%emt 0:00:04]} 3. Nf3 {[%emt 0:00:22]} h6 {[%emt 0:05:06]} 4. g3 {[%emt 0:02:47]} Bb4+ {[%emt 0:01:49]} 5. Nbd2 {[%emt 0:04:09]} O-O {[%emt 0:00:10]} 6. Bg2 {[%emt 0:00:53]} d5 {[%emt 0:00:07]} 7. O-O {[%emt 0:01:01]} b6 {[%emt 0:00:03]} 8. b3 {[%emt 0:11:39]} Bb7 {[%emt 0:02:02]} 9. Bb2 {[%emt 0:00:43]} Nbd7 {[%emt 0:00:31]} 10. Rc1 {[%emt 0:05:53]} Rc8 {[%emt 0:24:58]} 11. Ne5 {[%emt 0:11:25]} Nxe5 {[%emt 0:10:19]} 12. dxe5 {[%emt 0:00:58]} Ne4 {[%emt 0:00:05]} 13. Nxe4 {[%emt 0:08:36]} dxe4 {[%emt 0:00:03]} 14. a3 {[%emt 0:00:12]} Qxd1 {[%emt 0:00:05]} 15. Rfxd1 {[%emt 0:01:15]} Be7 {[%emt 0:00:04]} 16. b4 {[%emt 0:08:39]} Rfd8 {[%emt 0:01:11]} 17. Kf1 {[%emt 0:00:37]} c5 {[%emt 0:02:47]} 18. b5 {[%emt 0:00:38]} Bg5 {[%emt 0:04:47]} 19. e3 {[%emt 0:01:41]} Rxd1+ {[%emt 0:00:06]} 20. Rxd1 {[%emt 0:00:05]} Rd8 {[%emt 0:00:01]} 21. Rxd8+ {[%emt 0:00:25]} Bxd8 {[%emt 0:00:02]} 22. h4 {[%emt 0:00:48]} g5 {[%emt 0:00:30]} 23. hxg5 {[%emt 0:00:14]} hxg5 {[%emt 0:00:11]} 24. g4 {[%emt 0:00:15]} a5 {[%emt 0:00:13]} 25. a4 {[%emt 0:00:13]} Kf8 {[%emt 0:00:07]} 26. Ke2 {[%emt 0:00:05]} Kg8 {[%emt 0:00:03]} 27. Kf1 {[%emt 0:00:05]} Kf8 {[%emt 0:00:03]} 28. Ke2 {[%emt 0:00:05]} Kg8 {[%emt 0:00:03]} 29. Kf1 {[%emt 0:00:04]} Kg7 {[%emt 0:00:04]} 30. Ke2 {[%emt 0:00:05]} Kh6 {[%emt 0:00:04]} 1/2-1/2

[Event "AUT Bundesliga 2022-23"]
[Site "Jenbach"]
[Date "2022.11.06"]
[Round "4.10"]
[White "Alekseenko, Kirill"]
[Black "Wagner, Dennis"]
[Result "1/2-1/2"]
[ECO "C50"]
[WhiteElo "2691"]
[BlackElo "2570"]
[Annotator "ChessBase"]
[PlyCount "77"]
[EventDate "2022.11.03"]
[EventType "team-tourn"]
[EventCountry "AUT"]
[SourceTitle "playchess.com"]
[Source "ChessBase"]
[SourceQuality "1"]
[TimeControl "40/5400+30:1800+30"]

1. e4 {[%emt 0:00:04]} e5 {[%emt 0:00:05]} 2. Nf3 {[%emt 0:00:14]} Nc6 {[%emt 0:00:05]} 3. Bc4 {[%emt 0:00:21]} Bc5 {[%emt 0:00:23]} 4. d3 {[%emt 0:00:35]} Nf6 {[%emt 0:00:08]} 5. a4 {[%emt 0:00:05]} a5 {[%emt 0:03:48]} 6. Nc3 {[%emt 0:00:43]} d6 {[%emt 0:03:44]} 7. Be3 {[%emt 0:00:08]} Bxe3 {[%emt 0:04:12]} 8. fxe3 {[%emt 0:00:04]} O-O {[%emt 0:00:13]} 9. Qe2 {[%emt 0:01:00]} Nb4 {[%emt 0:04:27]} 10. O-O {[%emt 0:10:00]} Qe7 {[%emt 0:06:53]} 11. h3 {[%emt 0:18:23]} Be6 {[%emt 0:12:41]} 12. Bxe6 {[%emt 0:00:37]} Qxe6 {[%emt 0:03:16]} 13. Rf2 {[%emt 0:01:48]} Nd7 {[%emt 0:21:09]} 14. d4 {[%emt 0:01:56]} d5 {[%emt 0:05:23]} 15. Raf1 {[%emt 0:07:32]} h6 {[%emt 0:11:38]} 16. Nxe5 {[%emt 0:16:52]} Nxe5 {[%emt 0:00:07]} 17. dxe5 {[%emt 0:00:10]} dxe4 {[%emt 0:00:40]} 18. Rf5 {[%emt 0:00:04]} Nc6 {[%emt 0:08:57]} 19. Nb5 {[%emt 0:11:31]} Rac8 {[%emt 0:05:12]} 20. Qe1 {[%emt 0:09:08]} Ne7 {[%emt 0:04:44]} 21. Nd4 {[%emt 0:02:15]} Qg6 {[%emt 0:00:05]} 22. R5f4 {[%emt 0:00:50]} h5 {[%emt 0:02:25]} 23. Qh4 {[%emt 0:02:28]} Rce8 {[%emt 0:01:06]} 24. Kh1 {[%emt 0:05:47]} Nd5 {[%emt 0:00:17]} 25. R4f2 {[%emt 0:08:33]} Rxe5 {[%emt 0:00:23]} 26. Nf5 {[%emt 0:00:02]} Rfe8 {[%emt 0:00:26]} 27. c4 {[%emt 0:01:37]} Nb4 {[%emt 0:00:13]} 28. g4 {[%emt 0:00:43]} hxg4 {[%emt 0:00:31]} 29. Rf4 {[%emt 0:00:18]} Nd3 {[%emt 0:00:36]} 30. Rxg4 {[%emt 0:00:20]} Rxf5 {[%emt 0:00:04]} 31. Rxg6 {[%emt 0:00:32]} Rxf1+ {[%emt 0:00:01]} 32. Rg1 {[%emt 0:00:06]} Rxg1+ {[%emt 0:00:52]} 33. Kxg1 {[%emt 0:00:03]} Nxb2 {[%emt 0:00:35]} 34. Qf4 {[%emt 0:00:57]} c6 {[%emt 0:01:26]} 35. Qc7 {[%emt 0:00:46]} Nxc4 {[%emt 0:00:16]} 36. Qxb7 {[%emt 0:00:03]} Ne5 {[%emt 0:00:46]} 37. Qc7 {[%emt 0:01:20]} Nf3+ {[%emt 0:00:11]} 38. Kf2 {[%emt 0:00:04]} Re5 {[%emt 0:00:09]} 39. Qxc6 {[%emt 0:00:37]} 1/2-1/2

[Event "AUT Bundesliga 2022-23"]
[Site "Jenbach"]
[Date "2022.11.06"]
[Round "4.11"]
[White "Acs, Peter"]
[Black "Moussard, Jules"]
[Result "1/2-1/2"]
[ECO "B52"]
[WhiteElo "2572"]
[BlackElo "2686"]
[Annotator "ChessBase"]
[PlyCount "105"]
[EventDate "2022.11.03"]
[EventType "team-tourn"]
[EventCountry "AUT"]
[SourceTitle "playchess.com"]
[Source "ChessBase"]
[SourceQuality "1"]
[TimeControl "40/5400+30:1800+30"]

1. e4 {[%emt 0:00:05]} c5 {[%emt 0:00:05]} 2. Nf3 {[%emt 0:00:17]} d6 {[%emt 0:00:05]} 3. Bb5+ {[%emt 0:00:20]} Bd7 {[%emt 0:00:07]} 4. c4 {[%emt 0:01:13]} Nc6 {[%emt 0:00:06]} 5. d4 {[%emt 0:04:27]} cxd4 {[%emt 0:00:17]} 6. Nxd4 {[%emt 0:00:16]} Nf6 {[%emt 0:00:17]} 7. Nc3 {[%emt 0:00:16]} g6 {[%emt 0:00:43]} 8. O-O {[%emt 0:00:59]} Bg7 {[%emt 0:01:09]} 9. Bxc6 {[%emt 0:03:35]} bxc6 {[%emt 0:01:12]} 10. c5 {[%emt 0:02:37]} O-O {[%emt 0:03:09]} 11. cxd6 {[%emt 0:04:26]} exd6 {[%emt 0:00:06]} 12. Bf4 {[%emt 0:00:30]} Re8 {[%emt 0:10:12]} 13. Re1 {[%emt 0:03:08]} Qb6 {[%emt 0:08:08]} 14. Nb3 {[%emt 0:09:31]} d5 {[%emt 0:08:00]} 15. Bg5 {[%emt 0:29:47]} Bg4 {[%emt 0:04:11]} 16. Qc2 {[%emt 0:11:19]} Nxe4 {[%emt 0:01:19]} 17. Be3 {[%emt 0:01:59]} Qb4 {[%emt 0:02:20]} 18. Nxe4 {[%emt 0:05:48]} Qxe4 {[%emt 0:05:15]} 19. Qxe4 {[%emt 0:01:44]} dxe4 {[%emt 0:04:04]} 20. Bd4 {[%emt 0:01:47]} Be6 {[%emt 0:06:10]} 21. Rxe4 {[%emt 0:08:10]} Bxb3 {[%emt 0:01:25]} 22. Rxe8+ {[%emt 0:00:19]} Rxe8 {[%emt 0:00:04]} 23. Bxg7 {[%emt 0:00:09]} Kxg7 {[%emt 0:00:05]} 24. axb3 {[%emt 0:00:04]} Re2 {[%emt 0:00:07]} 25. Rb1 {[%emt 0:00:27]} Rc2 {[%emt 0:01:52]} 26. h4 {[%emt 0:01:48]} h5 {[%emt 0:00:39]} 27. g3 {[%emt 0:00:41]} a5 {[%emt 0:01:12]} 28. Kg2 {[%emt 0:03:33]} Kf6 {[%emt 0:01:57]} 29. Ra1 {[%emt 0:01:55]} Rxb2 {[%emt 0:00:25]} 30. Rc1 {[%emt 0:00:08]} Rxb3 {[%emt 0:00:15]} 31. Rxc6+ {[%emt 0:00:08]} Ke7 {[%emt 0:01:06]} 32. Ra6 {[%emt 0:02:23]} Rb5 {[%emt 0:00:09]} 33. Kf3 {[%emt 0:01:49]} Kd7 {[%emt 0:00:14]} 34. Ke3 {[%emt 0:00:54]} Re5+ {[%emt 0:00:15]} 35. Kd4 {[%emt 0:00:53]} Rf5 {[%emt 0:00:08]} 36. f4 {[%emt 0:00:30]} Rb5 {[%emt 0:00:41]} 37. Kc4 {[%emt 0:00:24]} Rb4+ {[%emt 0:00:43]} 38. Kd5 {[%emt 0:00:25]} a4 {[%emt 0:04:12]} 39. Ke5 {[%emt 0:00:43]} Ke7 {[%emt 0:00:32]} 40. Ra7+ {[%emt 0:00:00]} Kf8 {[%emt 0:00:00]} 41. f5 {[%emt 0:06:20]} Rb5+ {[%emt 0:05:09]} 42. Ke4 {[%emt 0:00:28]} gxf5+ {[%emt 0:09:53]} 43. Kf4 {[%emt 0:00:16]} Rb4+ {[%emt 0:00:02]} 44. Kxf5 {[%emt 0:00:37]} Rg4 {[%emt 0:00:09]} 45. Kf6 {[%emt 0:01:39]} Ke8 {[%emt 0:00:10]} 46. Ra5 {[%emt 0:02:06]} Kd7 {[%emt 0:08:17]} 47. Rxh5 {[%emt 0:01:07]} Rxg3 {[%emt 0:00:11]} 48. Ra5 {[%emt 0:02:16]} a3 {[%emt 0:03:54]} 49. Kxf7 {[%emt 0:01:34]} Kc6 {[%emt 0:00:15]} 50. h5 {[%emt 0:00:39]} Kb6 {[%emt 0:00:03]} 51. Ra8 {[%emt 0:00:58]} Rh3 {[%emt 0:00:24]} 52. h6 {[%emt 0:00:56]} Rxh6 {[%emt 0:00:37]} 53. Rxa3 1/2-1/2